fUST/lending_fUST_20250120
["ID","MTS","AMOUNT","RATE_DAILY","PERIOD"]
[349580457,1737309035887,-500.0,0.00021816,2]
[349580474,1737309036036,-167.37,0.00021816,2]
[349580476,1737309036048,-424.90239895,0.000219,2]
[349580478,1737309036059,-515.12530594,0.00021917,3]
[349580480,1737309036068,-500.0,0.00021917,3]
[349580482,1737309036077,-500.0,0.00021917,3]
[349580483,1737309036086,-500.0,0.00021917,3]
[349580484,1737309036095,-500.0,0.00021917,3]
[349580486,1737309036104,-500.0,0.00021917,3]
[349580488,1737309036113,-500.0,0.00021917,2]
[349580490,1737309036122,-500.0,0.00021917,3]
[349580492,1737309036131,-500.0,0.00021917,3]
[349580494,1737309036140,-921.93,0.00021917,3]
[349580496,1737309036150,-500.0,0.00021917,3]
[349580498,1737309036160,-1310.42,0.00021917,3]
[349580499,1737309036169,-516.73565525,0.00021917,3]
[349580501,1737309036178,-500.0,0.00021917,3]
[349580502,1737309036188,-500.0,0.00021917,3]
[349580503,1737309036198,-500.0,0.00021917,3]
[349580504,1737309036207,-500.0,0.00021917,3]
[349580505,1737309036216,-500.0,0.00021917,3]
[349580506,1737309036225,-500.0,0.00021917,3]
[349580507,1737309036234,-500.0,0.00021917,3]
[349580508,1737309036243,-4324.42,0.00021917,3]
[349580509,1737309036253,-500.0,0.00021917,3]
[349580510,1737309036262,-628.22,0.00021917,3]
[349580511,1737309036271,-500.0,0.00021917,3]
[349580512,1737309036280,-500.0,0.00021917,3]
[349580513,1737309036289,-1537.62,0.00021917,3]
[349580514,1737309036298,-500.0,0.00021917,3]
[349580515,1737309036307,-500.0,0.00021917,3]
[349580516,1737309036319,-500.0,0.00021917,3]
[349580517,1737309036328,-500.0,0.00021917,3]
[349580518,1737309036337,-500.0,0.00021917,3]
[349580519,1737309036346,-1649.17,0.00021917,3]
[349580520,1737309036355,-500.0,0.00021917,3]
[349580521,1737309036363,-500.0,0.00021917,3]
[349580522,1737309036373,-500.0,0.00021917,3]
[349580523,1737309036382,-500.0,0.00021917,3]
[349580524,1737309036391,-500.0,0.00021917,3]
[349580525,1737309036401,-500.0,0.00021917,3]
[349580526,1737309036410,-2728.02116474,0.00021975,2]
[349580527,1737309036420,-500.0,0.00022053,3]
[349580528,1737309036429,-500.0,0.00022054,3]
[349580529,1737309036438,-500.0,0.00022054,2]
[349580530,1737309036447,-500.0,0.00022054,3]
[349580531,1737309036456,-921.93,0.00022054,3]
[349580532,1737309036465,-1310.42,0.00022054,3]
[349580533,1737309036474,-500.0,0.00022054,3]
[349580534,1737309036483,-500.0,0.00022054,3]
[349580535,1737309036492,-500.0,0.00022054,3]
[349580536,1737309036501,-399.75,0.00022054,3]
[349580537,1737309036511,-273.38,0.00022054,3]
[349580538,1737309036520,-4324.42,0.00022054,3]
[349580539,1737309036529,-500.0,0.00022054,3]
[349580540,1737309036538,-500.0,0.00022054,3]
[349580541,1737309036547,-1537.62,0.00022054,3]
[349580542,1737309036557,-500.0,0.00022054,3]
[349580543,1737309036569,-500.0,0.00022054,3]
[349580544,1737309036578,-500.0,0.00022054,3]
[349580545,1737309036587,-300.52,0.00022054,3]
[349580546,1737309036596,-1649.17,0.00022054,3]
[349580547,1737309036604,-206.89,0.00022054,3]
[349580548,1737309036614,-602.04663215,0.00022091,2]
[349580549,1737309036623,-500.0,0.00022191,3]
[349580550,1737309036633,-500.0,0.00022191,2]
[349580551,1737309036642,-500.0,0.00022191,3]
[349580552,1737309036651,-921.93,0.00022191,3]
[349580553,1737309036660,-1310.42,0.00022191,3]
[349580554,1737309036669,-500.0,0.00022191,3]
[349580555,1737309036678,-500.0,0.00022191,3]
[349580556,1737309036688,-500.0,0.00022191,3]
[349580557,1737309036697,-4324.42,0.00022191,3]
[349580558,1737309036706,-500.0,0.00022191,3]
[349580559,1737309036715,-500.0,0.00022191,3]
[349580560,1737309036724,-1537.62,0.00022191,3]
[349580561,1737309036733,-500.0,0.00022191,3]
[349580562,1737309036742,-500.0,0.00022191,3]
[349580563,1737309036751,-500.0,0.00022191,3]
[349580564,1737309036760,-1649.17,0.00022191,3]
[349580565,1737309036770,-159.571253,0.00022222,2]
[349580566,1737309036779,-160.0,0.00022325,3]
[349580567,1737309036792,-500.0,0.00022328,3]
[349580568,1737309036801,-500.0,0.00022328,2]
[349580569,1737309036811,-500.0,0.00022328,3]
[349580570,1737309036820,-921.93,0.00022328,3]
[349580571,1737309036830,-1310.42,0.00022328,3]
[349580572,1737309036839,-500.0,0.00022328,3]
[349580573,1737309036848,-500.0,0.00022328,3]
[349580574,1737309036858,-500.0,0.00022328,3]
[349580575,1737309036869,-4324.42,0.00022328,3]
[349580576,1737309036880,-500.0,0.00022328,3]
[349580577,1737309036890,-500.0,0.00022328,3]
[349580578,1737309036899,-1537.62,0.00022328,3]
[349580579,1737309036909,-500.0,0.00022328,3]
[349580580,1737309036918,-500.0,0.00022328,3]
[349580581,1737309036928,-500.0,0.00022328,3]
[349580582,1737309036937,-1649.17,0.00022328,3]
[349580583,1737309036947,-1485.01,0.000224,2]
[349580584,1737309036956,-500.0,0.00022465,3]
[349580585,1737309036965,-500.0,0.00022465,2]
[349580586,1737309036975,-500.0,0.00022465,3]
[349580587,1737309036984,-921.93,0.00022465,3]
[349580588,1737309036995,-1310.42,0.00022465,3]
[349580589,1737309037004,-500.0,0.00022465,3]
[349580590,1737309037013,-500.0,0.00022465,3]
[349580591,1737309037027,-500.0,0.00022465,3]
[349580592,1737309037037,-4324.42,0.00022465,3]
[349580593,1737309037047,-500.0,0.00022465,3]
[349580594,1737309037056,-500.0,0.00022465,3]
[349580595,1737309037067,-1537.62,0.00022465,3]
[349580596,1737309037076,-500.0,0.00022465,3]
[349580597,1737309037086,-500.0,0.00022465,3]
[349580598,1737309037095,-500.0,0.00022465,3]
[349580599,1737309037104,-1649.17,0.00022465,3]
[349580600,1737309037114,-602.04663215,0.00022493,2]
[349580601,1737309037123,-501.30952676,0.00022521,2]
[349580602,1737309037132,-156.89252278,0.00022521,2]
[349580603,1737309037141,-420.0,0.00022569,2]
[349580604,1737309037151,-500.0,0.00022602,3]
[349580605,1737309037160,-500.0,0.00022602,2]
[349580606,1737309037170,-500.0,0.00022602,3]
[349580607,1737309037179,-921.93,0.00022602,3]
[349580608,1737309037188,-1310.42,0.00022602,3]
[349580609,1737309037197,-500.0,0.00022602,3]
[349580610,1737309037206,-500.0,0.00022602,3]
[349580611,1737309037215,-500.0,0.00022602,3]
[349580612,1737309037225,-4324.42,0.00022602,3]
[349580613,1737309037234,-500.0,0.00022602,3]
[349580614,1737309037243,-500.0,0.00022602,3]
[349580615,1737309037252,-1537.62,0.00022602,3]
[349580616,1737309037262,-500.0,0.00022602,3]
[349580617,1737309037271,-500.0,0.00022602,3]
[349580618,1737309037280,-500.0,0.00022602,3]
[349580619,1737309037290,-1649.17,0.00022602,3]
[349580620,1737309037299,-1052.0677076,0.0002269,2]
[349580621,1737309037307,-500.0,0.00022707,2]
[349580622,1737309037318,-161.449805,0.00022707,2]
[349580623,1737309037327,-241.36847462,0.00022739,3]
[349580624,1737309037337,-500.0,0.00022739,2]
[349580625,1737309037346,-500.0,0.00022739,3]
[349580626,1737309037355,-921.93,0.00022739,3]
[349580627,1737309037364,-1310.42,0.00022739,3]
[349580628,1737309037373,-500.0,0.00022739,3]
[349580630,1737309037382,-500.0,0.00022739,3]
[349580631,1737309037391,-500.0,0.00022739,3]
[349580632,1737309037400,-4324.42,0.00022739,3]
[349580633,1737309037409,-500.0,0.00022739,3]
[349580634,1737309037418,-500.0,0.00022739,3]
[349580635,1737309037427,-1537.62,0.00022739,3]
[349580636,1737309037436,-500.0,0.00022739,3]
[349580637,1737309037445,-500.0,0.00022739,3]
[349580638,1737309037455,-500.0,0.00022739,3]
[349580639,1737309037463,-1649.17,0.00022739,3]
[349580640,1737309037473,-500.0,0.00022748,2]
[349580641,1737309037483,-500.0,0.00022748,2]
[349580643,1737309037492,-536.0,0.00022783,2]
[349580645,1737309037501,-2063.0,0.00022783,2]
[349580646,1737309037510,-2308.0,0.00022783,2]
[349580648,1737309037520,-395.0,0.00022783,2]
[349580649,1737309037529,-500.0,0.00022876,2]
[349580650,1737309037538,-500.0,0.00022876,3]
[349580651,1737309037548,-921.93,0.00022876,3]
[349580652,1737309037558,-1310.42,0.00022876,3]
[349580653,1737309037570,-500.0,0.00022876,3]
[349580654,1737309037579,-500.0,0.00022876,3]
[349580655,1737309037587,-500.0,0.00022876,3]
[349580656,1737309037597,-4324.42,0.00022876,3]
[349580657,1737309037606,-500.0,0.00022876,3]
[349580658,1737309037615,-500.0,0.00022876,3]
[349580659,1737309037624,-1537.62,0.00022876,3]
[349580660,1737309037633,-500.0,0.00022876,3]
[349580661,1737309037643,-500.0,0.00022876,3]
[349580662,1737309037652,-500.0,0.00022876,3]
[349580663,1737309037661,-1649.17,0.00022876,3]
[349580664,1737309037671,-602.04663215,0.00022896,2]
[349580665,1737309037680,-772.75033066,0.000229,2]
[349580666,1737309037689,-4906.68754476,0.000229,3]
[349580667,1737309037698,-334.06,0.0002296,2]
[349580668,1737309037708,-4906.6875447,0.00022969,3]
[349580669,1737309037717,-7438.69753278,0.00023,2]
[349580670,1737309037726,-7438.69753278,0.00023,3]
[349580671,1737309037736,-503.11031196,0.00023004,2]
[349580672,1737309037745,-514.79963391,0.00023011,2]
[349580673,1737309037755,-500.0,0.00023011,2]
[349580675,1737309037764,-500.0,0.00023011,2]
[349580676,1737309037774,-500.0,0.00023011,2]
[349580677,1737309037786,-502.77137632,0.00023011,2]
[349580678,1737309037797,-486.14491826,0.00023011,2]
[349580679,1737309037807,-500.0,0.00023011,2]
[349580680,1737309037818,-500.0,0.00023011,2]
[349580681,1737309037828,-500.0,0.00023011,2]
[349580682,1737309037837,-500.0,0.00023011,2]
[349580683,1737309037846,-352.92047942,0.00023011,2]
[349580684,1737309037856,-500.0,0.00023011,2]
[349580685,1737309037865,-500.0,0.00023011,2]
[349580686,1737309037875,-500.0,0.00023011,2]
[349580687,1737309037884,-500.0,0.00023011,2]
[349580688,1737309037894,-500.0,0.00023011,2]
[349580689,1737309037904,-500.0,0.00023011,2]
[349580690,1737309037913,-500.0,0.00023011,2]
[349580691,1737309037923,-505.63993947,0.00023011,2]
[349580692,1737309037932,-500.0,0.00023011,2]
[349580693,1737309037941,-500.0,0.00023011,2]
[349580694,1737309037951,-500.0,0.00023011,2]
[349580695,1737309037960,-500.0,0.00023011,2]
[349580696,1737309037969,-500.0,0.00023011,2]
[349580697,1737309037979,-500.0,0.00023011,2]
[349580698,1737309037989,-500.0,0.00023011,2]
[349580699,1737309037999,-500.0,0.00023011,2]
[349580700,1737309038008,-500.0,0.00023011,2]
[349580701,1737309038018,-500.0,0.00023011,2]
[349580702,1737309038027,-500.0,0.00023011,2]
[349580703,1737309038036,-500.0,0.00023011,2]
[349580704,1737309038046,-500.0,0.00023011,2]
[349580706,1737309038055,-500.0,0.00023011,2]
[349580708,1737309038065,-500.0,0.00023011,2]
[349580710,1737309038074,-497.63100778,0.00023011,2]
[349580712,1737309038083,-244.38044466,0.00023011,2]
[349580714,1737309038092,-500.0,0.00023011,2]
[349580717,1737309038102,-500.0,0.00023011,2]
[349580719,1737309038111,-500.0,0.00023011,2]
[349580721,1737309038121,-500.0,0.00023011,2]
[349580723,1737309038131,-500.0,0.00023011,2]
[349580725,1737309038140,-500.0,0.00023011,2]
[349580727,1737309038150,-500.0,0.00023011,2]
[349580729,1737309038159,-500.0,0.00023011,2]
[349580731,1737309038169,-500.0,0.00023011,2]
[349580733,1737309038180,-500.0,0.00023011,2]
[349580734,1737309038189,-500.0,0.00023011,2]
[349580735,1737309038198,-500.0,0.00023011,2]
[349580736,1737309038208,-500.0,0.00023011,2]
[349580737,1737309038217,-500.0,0.00023011,2]
[349580738,1737309038227,-500.0,0.00023011,2]
[349580739,1737309038236,-500.0,0.00023011,2]
[349580740,1737309038246,-500.0,0.00023011,2]
[349580741,1737309038255,-500.0,0.00023011,2]
[349580742,1737309038264,-500.0,0.00023011,2]
[349580743,1737309038273,-500.0,0.00023011,2]
[349580744,1737309038282,-500.0,0.00023011,2]
[349580745,1737309038292,-500.0,0.00023011,2]
[349580746,1737309038301,-500.0,0.00023011,2]
[349580747,1737309038310,-500.0,0.00023011,2]
[349580748,1737309038320,-500.0,0.00023011,2]
[349580749,1737309038329,-485.98828626,0.00023011,2]
[349580750,1737309038338,-500.0,0.00023011,2]
[349580751,1737309038348,-500.0,0.00023011,2]
[349580752,1737309038357,-500.0,0.00023011,2]
[349580753,1737309038367,-500.0,0.00023011,2]
[349580754,1737309038376,-500.0,0.00023011,2]
[349580755,1737309038386,-500.0,0.00023011,2]
[349580756,1737309038395,-500.0,0.00023011,2]
[349580757,1737309038405,-432.15558804,0.00023011,2]
[349580758,1737309038414,-500.0,0.00023011,2]
[349580759,1737309038424,-500.0,0.00023011,2]
[349580760,1737309038434,-500.0,0.00023011,2]
[349580761,1737309038443,-500.0,0.00023011,2]
[349580762,1737309038452,-500.0,0.00023011,2]
[349580763,1737309038461,-500.0,0.00023011,2]
[349580764,1737309038471,-500.0,0.00023011,2]
[349580765,1737309038480,-500.0,0.00023011,2]
[349580766,1737309038490,-500.0,0.00023011,2]
[349580767,1737309038499,-500.0,0.00023011,2]
[349580768,1737309038508,-500.0,0.00023011,2]
[349580769,1737309038517,-500.0,0.00023013,2]
[349580770,1737309038527,-500.0,0.00023013,3]
[349580771,1737309038537,-921.93,0.00023013,3]
[349580772,1737309038546,-1310.42,0.00023013,3]
[349580773,1737309038555,-500.0,0.00023013,3]
[349580774,1737309038566,-500.0,0.00023013,3]
[349580775,1737309038575,-500.0,0.00023013,3]
[349580776,1737309038584,-4324.42,0.00023013,3]
[349580777,1737309038594,-500.0,0.00023013,3]
[349580778,1737309038604,-500.0,0.00023013,3]
[349580779,1737309038613,-1537.62,0.00023013,3]
[349580780,1737309038622,-500.0,0.00023013,3]
[349580781,1737309038631,-500.0,0.00023013,3]
[349580782,1737309038641,-500.0,0.00023013,3]
[349580783,1737309038651,-1649.17,0.00023013,3]
[349580784,1737309038662,-879.07656958,0.00023034,2]
[349580785,1737309038671,-4906.6875447,0.00023038,3]
[349580786,1737309038680,-4906.6875447,0.00023107,3]
[349580787,1737309038689,-778.26754517,0.00023134,2]
[349580788,1737309038699,-500.0,0.0002315,2]
[349580789,1737309038708,-500.0,0.0002315,3]
[349580790,1737309038718,-921.93,0.0002315,3]
[349580791,1737309038727,-1310.42,0.0002315,3]
[349580792,1737309038737,-500.0,0.0002315,3]
[349580793,1737309038746,-500.0,0.0002315,3]
[349580794,1737309038755,-500.0,0.0002315,3]
[349580795,1737309038765,-4324.42,0.0002315,3]
[349580796,1737309038774,-500.0,0.0002315,3]
[349580797,1737309038784,-500.0,0.0002315,3]
[349580798,1737309038796,-1537.62,0.0002315,3]
[349580799,1737309038805,-500.0,0.0002315,3]
[349580800,1737309038909,-500.0,0.0002315,3]
[349580801,1737309038919,-500.0,0.0002315,3]
[349580802,1737309038929,-1649.17,0.0002315,3]
[349580803,1737309038938,-4906.6875447,0.00023176,3]
[349580804,1737309038948,-4906.6875447,0.00023245,3]
[349580805,1737309038957,-500.0,0.00023287,3]
[349580806,1737309038967,-921.93,0.00023287,3]
[349580807,1737309038977,-1310.42,0.00023287,3]
[349580808,1737309038986,-500.0,0.00023287,3]
[349580809,1737309038995,-500.0,0.00023287,3]
[349580810,1737309039005,-500.0,0.00023287,3]
[349580811,1737309039014,-4324.42,0.00023287,3]
[349580812,1737309039024,-526.16658608,0.00023287,3]
[349580813,1737309039034,-500.0,0.00023287,3]
[349580814,1737309039043,-1537.62,0.00023287,3]
[349580815,1737309039052,-500.0,0.00023287,3]
[349580816,1737309039063,-500.0,0.00023287,3]
[349580817,1737309039072,-500.0,0.00023287,3]
[349580818,1737309039082,-1649.17,0.00023287,3]
[349580819,1737309039092,-500.0,0.00023296,2]
[349580820,1737309039101,-1000.0,0.00023296,2]
[349580821,1737309039111,-602.04663215,0.00023298,2]
[349580822,1737309039120,-4906.6875447,0.00023314,3]
[349580823,1737309039130,-4906.6875447,0.00023383,3]
[349580824,1737309039140,-500.0,0.00023424,3]
[349580825,1737309039150,-921.93,0.00023424,3]
[349580826,1737309039159,-1310.42,0.00023424,3]
[349580827,1737309039169,-500.0,0.00023424,3]
[349580828,1737309039179,-500.0,0.00023424,3]
[349580829,1737309039189,-500.0,0.00023424,3]
[349580830,1737309039199,-4324.42,0.00023424,3]
[349580831,1737309039208,-500.0,0.00023424,3]
[349580832,1737309039218,-1537.62,0.00023424,3]
[349580833,1737309039228,-500.0,0.00023424,3]
[349580834,1737309039237,-500.0,0.00023424,3]
[349580835,1737309039247,-540.21552643,0.00023424,3]
[349580836,1737309039257,-1649.17,0.00023424,3]
[349580837,1737309039266,-4906.6875447,0.00023452,3]
[349580838,1737309039276,-504.73076203,0.00023473,2]
[349580839,1737309039285,-4906.6875447,0.00023521,3]
[349580840,1737309039294,-160.0,0.0002356,2]
[349580841,1737309039304,-500.0,0.00023561,3]
[349580842,1737309039313,-921.93,0.00023561,3]
[349580843,1737309039322,-1310.42,0.00023561,3]
[349580844,1737309039332,-404.65402606,0.00023561,3]
[349580845,1737309039341,-500.0,0.00023561,3]
[349580846,1737309039351,-500.0,0.00023561,3]
[349580847,1737309039361,-4324.42,0.00023561,3]
[349580848,1737309039370,-500.0,0.00023561,3]
[349580849,1737309039379,-1537.62,0.00023561,3]
[349580850,1737309039388,-500.0,0.00023561,3]
[349580851,1737309039398,-318.07247959,0.00023561,3]
[349580852,1737309039408,-1649.17,0.00023561,3]
[349580853,1737309039418,-161.50234174,0.00023569,2]
[349580854,1737309039427,-4906.6875447,0.0002359,3]
[349580855,1737309039437,-4906.6875447,0.00023659,3]
[349580856,1737309039446,-500.0,0.00023698,3]
[349580857,1737309039456,-921.93,0.00023698,3]
[349580858,1737309039465,-1310.42,0.00023698,3]
[349580859,1737309039475,-500.0,0.00023698,3]
[349580860,1737309039484,-530.15753821,0.00023698,3]
[349580861,1737309039494,-4324.42,0.00023698,3]
[349580863,1737309039503,-500.0,0.00023698,3]
[349580864,1737309039513,-1537.62,0.00023698,3]
[349580865,1737309039522,-500.0,0.00023698,3]
[349580866,1737309039532,-1649.17,0.00023698,3]
[349580867,1737309039542,-602.04663215,0.000237,2]
[349580868,1737309039551,-4906.6875447,0.00023728,3]
[349580869,1737309039561,-4906.6875447,0.00023797,3]
[349580870,1737309039573,-151.0,0.000238,8]
[349580871,1737309039584,-500.0,0.00023835,3]
[349580872,1737309039595,-921.93,0.00023835,3]
[349580873,1737309039605,-1310.42,0.00023835,3]
[349580874,1737309039615,-500.0,0.00023835,3]
[349580875,1737309039625,-4324.42,0.00023835,3]
[349580876,1737309039635,-500.0,0.00023835,3]
[349580877,1737309039645,-1537.62,0.00023835,3]
[349580878,1737309039655,-500.0,0.00023835,3]
[349580879,1737309039665,-1649.17,0.00023835,3]
[349580880,1737309039675,-4906.6875447,0.00023866,3]
[349580881,1737309039685,-16146.50449249,0.000239,27]
[349580882,1737309039695,-22563.57221625,0.00023924,2]
[349580883,1737309039705,-4906.6875447,0.00023934,3]
[349580885,1737309039715,-500.0,0.00023972,3]
[349580886,1737309039724,-921.93,0.00023972,3]
[349580888,1737309039734,-1310.42,0.00023972,3]
[349580889,1737309039744,-500.0,0.00023972,3]
[349580890,1737309039754,-4324.42,0.00023972,3]
[349580891,1737309039763,-500.0,0.00023972,3]
[349580892,1737309039773,-1537.62,0.00023972,3]
[349580893,1737309039783,-500.0,0.00023972,3]
[349580894,1737309039796,-1649.17,0.00023972,3]
[349580895,1737309039807,-160.0,0.00023987,5]
[349580896,1737309039822,-249.01,0.00023993,2]
[349580898,1737309039833,-151.0,0.00024,7]
[349580899,1737309039842,-153.06,0.00024,31]
[349580901,1737309039852,-153.06,0.00024,31]
[349580903,1737309039861,-153.06,0.00024,31]
[349580905,1737309039871,-153.06,0.00024,31]
[349580907,1737309039881,-153.06,0.00024,31]
[349580909,1737309039890,-153.06,0.00024,31]
[349580911,1737309039899,-153.06,0.00024,31]
[349580913,1737309039909,-153.06,0.00024,31]
[349580914,1737309039918,-153.06,0.00024,31]
[349580916,1737309039928,-153.06,0.00024,31]
[349580918,1737309039938,-153.06,0.00024,31]
[349580920,1737309039947,-153.06,0.00024,31]
[349580922,1737309039957,-153.06,0.00024,31]
[349580924,1737309039966,-153.06,0.00024,31]
[349580925,1737309039975,-1200.0,0.00024,2]
[349580926,1737309039984,-297.177,0.00024,2]
[349580927,1737309039993,-500.0,0.00024,2]
[349580928,1737309040002,-4906.6875447,0.00024003,3]
[349580929,1737309040012,-4906.6875447,0.00024072,3]
[349580930,1737309040021,-2000.0,0.000241,2]
[349580931,1737309040031,-2000.0,0.000241,2]
[349580932,1737309040039,-261.20759293,0.00024108,2]
[349580933,1737309040049,-500.0,0.00024108,2]
[349580934,1737309040058,-500.0,0.00024108,2]
[349580935,1737309040072,-500.0,0.00024108,2]
[349580936,1737309040081,-419.5198011,0.00024108,2]
[349580937,1737309040091,-500.0,0.00024109,3]
[349580938,1737309040101,-921.93,0.00024109,3]
[349580939,1737309040110,-1310.42,0.00024109,3]
[349580940,1737309040119,-500.0,0.00024109,3]
[349580941,1737309040129,-4324.42,0.00024109,3]
[349580942,1737309040139,-500.0,0.00024109,3]
[349580943,1737309040148,-1537.62,0.00024109,3]
[349580944,1737309040158,-399.37701185,0.00024109,3]
[349580946,1737309040167,-1649.17,0.00024109,3]
[349580947,1737309040177,-4906.6875447,0.00024141,3]
[349580948,1737309040186,-36903.88146915,0.00024168,5]
[349580949,1737309040195,-3680.08546081,0.00024168,5]
[349580950,1737309040205,-453780.64636447,0.00024169,61]
[349580952,1737309040274,-302560.26550091,0.00024169,61]
[349580953,1737309040286,-7033.48477751,0.00024169,61]
[349580964,1737309040410,-110004.32169077,0.00024169,61]
[349581326,1737309240245,3115.58772172,0.00023561,120]
[349581334,1737309697907,157.895627,0.00013973,2]
[349581347,1737310232177,-283.26826597,0.000189,2]
[349581348,1737310232187,-168.009661,0.00021076,2]
[349581349,1737310232196,-170.045,0.00021916,2]
[349581350,1737310232206,-300.0,0.00021916,2]
[349581351,1737310232218,-500.0,0.00021917,2]
[349581352,1737310232227,-215.28,0.00021917,3]
[349581353,1737310232239,-500.0,0.00021917,3]
[349581354,1737310232248,-500.0,0.00021917,3]
[349581355,1737310232257,-578.32,0.00021917,3]
[349581356,1737310232266,-500.0,0.00021917,3]
[349581357,1737310232275,-500.0,0.00021917,3]
[349581358,1737310232285,-500.0,0.00021917,3]
[349581359,1737310232294,-500.0,0.00021917,3]
[349581360,1737310232303,-500.0,0.00021917,3]
[349581361,1737310232312,-500.0,0.00021917,3]
[349581362,1737310232321,-520.53414045,0.00021917,3]
[349581363,1737310232331,-500.0,0.00021917,3]
[349581364,1737310232340,-500.0,0.00021917,3]
[349581365,1737310232350,-500.0,0.00021917,3]
[349581366,1737310232359,-500.0,0.00021917,3]
[349581367,1737310232368,-500.0,0.00021917,3]
[349581368,1737310232377,-544.36,0.00021917,3]
[349581369,1737310232386,-500.0,0.00021917,3]
[349581370,1737310232395,-500.0,0.00021917,3]
[349581371,1737310232404,-500.0,0.00021917,3]
[349581372,1737310232413,-628.5,0.00021917,3]
[349581373,1737310232422,-500.0,0.00021917,3]
[349581374,1737310232432,-500.0,0.00021917,3]
[349581375,1737310232442,-500.0,0.00021917,3]
[349581376,1737310232451,-500.0,0.00021917,3]
[349581377,1737310232462,-500.0,0.00021917,3]
[349581378,1737310232471,-500.0,0.00021917,3]
[349581379,1737310232480,-348.84,0.00021917,3]
[349581380,1737310232491,-500.0,0.00021917,3]
[349581381,1737310232502,-500.0,0.00021917,3]
[349581382,1737310232514,-500.0,0.00021917,3]
[349581383,1737310232525,-500.0,0.00021917,3]
[349581384,1737310232534,-324.5353335,0.00021917,3]
[349581385,1737310232543,-500.0,0.00021917,3]
[349581386,1737310232552,-500.0,0.00021917,3]
[349581387,1737310232561,-500.0,0.00021917,3]
[349581388,1737310232570,-547.79,0.00021917,2]
[349581389,1737310232579,-500.0,0.00021917,3]
[349581390,1737310232588,-500.0,0.00021917,3]
[349581391,1737310232598,-500.0,0.00021917,3]
[349581392,1737310232609,-500.0,0.00021917,3]
[349581393,1737310232619,-500.0,0.00021917,3]
[349581394,1737310232628,-500.0,0.00021917,3]
[349581395,1737310232638,-500.0,0.00021917,3]
[349581396,1737310232647,-1042.64,0.00021917,3]
[349581397,1737310232656,-500.0,0.00021917,3]
[349581398,1737310232666,-761.38,0.00021917,3]
[349581399,1737310232676,-500.0,0.00021917,3]
[349581400,1737310232685,-500.0,0.00021917,3]
[349581401,1737310232695,-254.5478698,0.00021917,3]
[349581402,1737310232705,-3744.49,0.00021917,3]
[349581403,1737310232716,-500.0,0.00021917,3]
[349581404,1737310232727,-500.0,0.00021917,3]
[349581405,1737310232736,-500.0,0.00021917,3]
[349581406,1737310232852,-500.0,0.00021917,3]
[349581407,1737310232863,-500.0,0.00021917,3]
[349581408,1737310232873,-500.0,0.00021917,3]
[349581409,1737310232882,-500.0,0.00021917,3]
[349581410,1737310232892,-1446.99,0.00021917,3]
[349581411,1737310232901,-500.0,0.00021917,3]
[349581412,1737310232911,-500.0,0.00021917,3]